fUST/lending_fUST_20240715
["ID","MTS","AMOUNT","RATE_DAILY","PERIOD"]
[332144539,1720989052275,-477.34,0.00025205,2]
[332144540,1720989052285,-500.0,0.00025205,2]
[332144541,1720989052295,-500.0,0.00025205,2]
[332144542,1720989052306,-458.889038,0.00025205,7]
[332144543,1720989052316,-556.08,0.00025205,2]
[332144544,1720989052326,-529.29,0.00025205,2]
[332144545,1720989052335,-151.0,0.00025205,7]
[332144546,1720989052345,-500.0,0.00025205,2]
[332144547,1720989052355,-151.0,0.00025205,7]
[332144548,1720989052364,-500.0,0.00025205,2]
[332144549,1720989052373,-500.0,0.00025205,2]
[332144550,1720989052384,-500.0,0.00025205,2]
[332144551,1720989052393,-308.03356158,0.00025205,2]
[332144552,1720989052404,-500.0,0.00025205,2]
[332144553,1720989052415,-500.0,0.00025205,2]
[332144554,1720989052424,-500.0,0.00025205,2]
[332144555,1720989052433,-500.0,0.00025205,2]
[332144556,1720989052443,-500.0,0.00025205,2]
[332144557,1720989052452,-500.0,0.00025205,2]
[332144558,1720989052462,-899.3,0.00025205,2]
[332144559,1720989052472,-500.0,0.00025205,2]
[332144560,1720989052481,-500.0,0.00025205,2]
[332144561,1720989052490,-500.0,0.00025205,2]
[332144562,1720989052499,-500.0,0.00025205,2]
[332144563,1720989052508,-151.0,0.00025205,2]
[332144564,1720989052517,-500.0,0.00025205,2]
[332144565,1720989052526,-500.0,0.00025205,2]
[332144566,1720989052535,-151.0,0.00025205,2]
[332144567,1720989052544,-500.0,0.00025205,2]
[332144568,1720989052554,-423.53243489,0.00025205,2]
[332144586,1720989601445,300.0,0.00017999,2]
[332144587,1720989603726,300.0,0.00017999,2]
[332144588,1720989613255,867.74210861,0.000179,2]
[332144589,1720989632346,347.88509852,0.00017999,2]
[332144590,1720989632376,500.0,0.00017999,2]
[332144591,1720989632407,500.0,0.00017999,2]
[332144592,1720989632439,500.0,0.00017999,2]
[332144593,1720989632483,382.39523091,0.00017999,2]
[332144594,1720989632516,500.0,0.00017999,2]
[332144595,1720989632546,298.30640096,0.00017999,2]
[332144596,1720989632587,602.87372238,0.00017999,2]
[332144598,1720989661083,300.0,0.00017999,2]
[332144599,1720989662919,300.0,0.00017999,2]
[332144600,1720989666848,788.050396,0.00017999,2]
[332144601,1720989673177,4474.74704262,0.00017999,2]
[332144606,1720989808094,1298.6533861,0.00016976,2]
[332144609,1720989837433,909.07625877,0.00016255,2]
[332144610,1720989839823,667.05296725,0.00016255,2]
[332144611,1720989868371,530.20355034,0.00016255,2]
[332144612,1720989874853,182.77484663,0.00016255,2]
[332144614,1720989884753,157.25454264,0.00016255,2]
[332144615,1720989886608,1545.63783437,0.00016255,2]
[332144616,1720989929589,310.9,0.00010959,2]
[332144618,1720989934595,156.72164257,0.00014999,2]
[332144619,1720989940322,1178.45,0.00010959,2]
[332144620,1720989945822,790.54047591,0.00014999,2]
[332144621,1720989950865,982.05,0.00010959,2]
[332144622,1720989956925,1026.2245119,0.00015658,2]
[332144623,1720989961345,818.37,0.00010959,2]
[332144624,1720989971904,681.98,0.00010959,2]
[332144625,1720989973142,201.12793602,0.00014999,2]
[332144627,1720989974144,1698.50064883,0.00014999,2]
[332144628,1720989989053,2110.17954756,0.00014999,2]
[332144629,1720989991685,3777.63299636,0.00014999,2]
[332144630,1720989993213,568.31,0.00010959,2]
[332144631,1720990002666,3787.26449774,0.00014999,2]
[332144632,1720990004116,18863.21900487,0.00014999,2]
[332144633,1720990008902,1623.73351642,0.00014999,2]
[332144634,1720990010196,240.75597965,0.00014999,2]
[332144635,1720990014742,473.59,0.00010959,2]
[332144637,1720990025270,394.66,0.00010959,2]
[332144638,1720990031141,-166.637948,0.00015795,2]
[332144639,1720990031162,-753.60167482,0.00016054,2]
[332144642,1720990035770,328.89,0.00010959,2]
[332144643,1720990046292,274.07,0.00010959,2]
[332144644,1720990053090,-748.03618476,0.00016054,2]
[332144645,1720990053111,-392.77360034,0.00016153,2]
[332144646,1720990053133,-1215.3704454,0.00016242,2]
[332144647,1720990053155,-300.0,0.00016253,2]
[332144648,1720990053176,-500.0,0.00016254,2]
[332144649,1720990053197,-500.0,0.00016254,2]
[332144650,1720990053218,-178.09708026,0.00016254,2]
[332144651,1720990053238,-500.0,0.00016254,2]
[332144652,1720990053258,-500.0,0.00016254,2]
[332144653,1720990053279,-500.0,0.00016254,2]
[332144654,1720990053300,-467.23590659,0.00016254,2]
[332144655,1720990053319,-544.07451378,0.00016254,2]
[332144656,1720990053339,-287.42129962,0.00016255,2]
[332144657,1720990053360,-155.14654511,0.00016255,2]
[332144658,1720990053380,-250.0,0.00016746,2]
[332144659,1720990053401,-240.91587372,0.00016792,2]
[332144660,1720990056801,228.39,0.00010959,2]
[332144661,1720990061358,1623.73351642,0.00013283,2]
[332144662,1720990067308,190.33,0.00010959,2]
[332144663,1720990077691,3776.426534,0.00010959,2]
[332144664,1720990078175,158.61,0.00010959,2]
[332144665,1720990088796,793.05,0.00010959,2]
[332144668,1720990127692,234.91636439,0.00014999,2]
[332144670,1720990143317,-282.67494597,0.00016253,2]
[332144671,1720990143352,-300.0,0.00016253,2]
[332144672,1720990143386,-182.79942479,0.00016253,2]
[332144673,1720990143431,-117.20057521,0.00016253,2]
[332144674,1720990143464,-648.27379555,0.00016254,2]
[332144676,1720990168287,-796.09334559,0.00016254,2]
[332144677,1720990168341,-796.09334559,0.00016254,2]
[332144678,1720990168486,-227.46617037,0.00016254,2]
[332144679,1720990172079,-54816.90249778,0.00016254,2]
[332144680,1720990172100,-34969.80169059,0.00016255,2]
[332144681,1720990172121,-42279.12347767,0.00016255,2]
[332144682,1720990172143,-9.08412628,0.00016792,2]
[332144683,1720990172164,-250.0,0.00016838,2]
[332144684,1720990172185,-250.0,0.00016884,2]
[332144685,1720990172208,-250.0,0.0001693,2]
[332144686,1720990172230,-250.0,0.00016976,2]
[332144687,1720990172254,-285.3236787,0.00016976,2]
[332144688,1720990172274,-250.0,0.00017022,2]
[332144689,1720990172297,-250.0,0.00017068,2]
[332144690,1720990172319,-250.0,0.00017114,2]
[332144691,1720990172341,-250.0,0.0001716,2]
[332144692,1720990172363,-250.0,0.00017206,2]
[332144693,1720990172383,-250.0,0.00017252,2]
[332144694,1720990172404,-250.0,0.00017297,2]
[332144695,1720990172425,-250.0,0.00017343,2]
[332144696,1720990172446,-250.0,0.00017389,2]
[332144697,1720990172468,-250.0,0.00017435,2]
[332144698,1720990172493,-250.0,0.00017481,2]
[332144699,1720990172515,-250.0,0.00017527,2]
[332144700,1720990172540,-250.0,0.00017573,2]
[332144701,1720990172563,-250.0,0.00017619,2]
[332144702,1720990172585,-4028.86186046,0.00017637,2]
[332144703,1720990172606,-203.19755358,0.00017637,2]
[332144704,1720990172631,-1001.4068864,0.00017736,2]
[332144705,1720990172652,-8512.4600079,0.00017737,2]
[332144706,1720990172674,-420.0,0.00017765,2]
[332144707,1720990172695,-420.0,0.00017878,2]
[332144708,1720990172716,-1990.00417387,0.00017899,2]
[332144709,1720990172737,-484.0438386,0.000179,2]
[332144710,1720990172762,-33274.4707941,0.0001799,2]
[332144711,1720990172784,-500.0,0.00017998,2]
[332144712,1720990172806,-382.84066768,0.00017998,2]
[332144713,1720990172828,-602.46614589,0.00017998,2]
[332144714,1720990172856,-216.62883372,0.00017998,2]
[332144715,1720990172880,-500.0,0.00017998,2]
[332144716,1720990172902,-500.0,0.00017998,2]
[332144717,1720990172924,-554.03628822,0.00017998,2]
[332144718,1720990172946,-500.0,0.00017998,2]
[332144719,1720990172967,-500.0,0.00017998,2]
[332144720,1720990172988,-500.0,0.00017998,2]
[332144721,1720990173011,-202.53895313,0.00017998,2]
[332144722,1720990173034,-500.0,0.00017998,2]
[332144723,1720990173056,-300.13794719,0.00017998,2]
[332144724,1720990173078,-500.0,0.00017998,2]
[332144725,1720990173113,-500.0,0.00017998,2]
[332144726,1720990173138,-500.0,0.00017998,2]
[332144727,1720990173159,-500.0,0.00017998,2]
[332144728,1720990173180,-500.0,0.00017998,2]
[332144729,1720990173202,-500.0,0.00017998,2]
[332144730,1720990173225,-500.0,0.00017998,2]
[332144731,1720990173247,-500.0,0.00017998,2]
[332144732,1720990173268,-500.0,0.00017998,2]
[332144733,1720990173290,-500.0,0.00017998,2]
[332144734,1720990173313,-500.0,0.00017998,2]
[332144735,1720990173335,-500.0,0.00017998,2]
[332144736,1720990173358,-500.0,0.00017998,2]
[332144737,1720990173381,-500.0,0.00017998,2]
[332144738,1720990173404,-500.0,0.00017998,2]
[332144739,1720990173427,-300.0,0.00017998,2]
[332144740,1720990173450,-500.0,0.00017998,2]
[332144741,1720990173473,-500.0,0.00017998,2]
[332144742,1720990173496,-500.0,0.00017998,2]
[332144743,1720990173518,-500.0,0.00017998,2]
[332144744,1720990173541,-500.0,0.00017998,2]
[332144745,1720990173563,-500.0,0.00017998,2]
[332144746,1720990173585,-500.0,0.00017998,2]
[332144747,1720990173607,-610.26524441,0.00017998,2]
[332144748,1720990173630,-500.0,0.00017998,2]
[332144749,1720990173655,-500.0,0.00017998,2]
[332144750,1720990173680,-500.0,0.00017998,2]
[332144751,1720990173701,-500.0,0.00017998,2]
[332144752,1720990173723,-500.0,0.00017998,2]
[332144753,1720990173746,-200.0,0.00017998,2]
[332144754,1720990173768,-100000.0,0.00018,2]
[332144755,1720990173789,-1041.86176569,0.00018,2]
[332144756,1720990173812,-23001.34202176,0.00018234,2]
[332144796,1720990233252,-155.54259734,0.00016255,2]
[332144797,1720990233261,-5867.61145981,0.00018,2]
[332144798,1720990233275,-466.0,0.00018,2]
[332144799,1720990233304,-34017.77,0.00018,2]
[332144807,1720990238404,-2707.07461667,0.00018,2]
[332144808,1720990238416,-56941.54392352,0.00018,2]
[332144809,1720990238426,-300.0,0.00018233,2]
[332144810,1720990238436,-300.0,0.00018233,2]
[332144811,1720990238445,-10273.12877234,0.00018234,2]
[332144812,1720990238454,-500.0,0.00018243,2]
[332144813,1720990238464,-267.98846737,0.00018243,2]
[332144814,1720990238473,-421.72630213,0.00018243,2]
[332144815,1720990238482,-500.0,0.00018243,2]
[332144816,1720990238493,-500.0,0.00018243,2]
[332144817,1720990238502,-210.09656304,0.00018243,2]
[332144818,1720990238512,-500.0,0.00018243,2]
[332144819,1720990238521,-500.0,0.00018243,2]
[332144821,1720990238530,-237.82540175,0.00018243,2]
[332144823,1720990238539,-500.0,0.00018243,2]
[332144825,1720990238548,-500.0,0.00018243,2]
[332144827,1720990238558,-500.0,0.00018243,2]
[332144829,1720990238568,-351.77726719,0.00018243,2]
[332144831,1720990238577,-500.0,0.00018243,2]
[332144833,1720990238587,-500.0,0.00018243,2]
[332144834,1720990238596,-500.0,0.00018243,2]
[332144835,1720990238605,-500.0,0.00018243,2]
[332144836,1720990238614,-500.0,0.00018243,2]
[332144837,1720990238624,-167.18567108,0.00018243,2]
[332144838,1720990238633,-500.0,0.00018243,2]
[332144839,1720990238642,-500.0,0.00018243,2]
[332144840,1720990238652,-500.0,0.00018243,2]
[332144841,1720990238661,-500.0,0.00018243,2]
[332144842,1720990238671,-500.0,0.00018243,2]
[332144843,1720990238680,-500.0,0.00018243,2]
[332144844,1720990238689,-500.0,0.00018243,2]
[332144845,1720990238700,-24900.0,0.00018244,2]
[332144846,1720990238709,-191.16817144,0.00018798,2]
[332144847,1720990238719,-33274.4707941,0.00018889,2]
[332144848,1720990238728,-21266.34724239,0.00018899,2]
[332144849,1720990238737,-307.09426293,0.000189,2]
[332144850,1720990238747,-1000.0,0.00019178,10]
[332144851,1720990238756,-433.73919937,0.00019178,10]
[332144852,1720990238765,-484.04383856,0.00019633,2]
[332144853,1720990238776,-27669.26981646,0.00019701,2]
[332144854,1720990238786,-42279.12347767,0.00019701,2]
[332144855,1720990238796,-16372.93467576,0.00019701,2]
[332144856,1720990238806,-420.0,0.00019889,2]
[332144857,1720990238815,-150.112233,0.0002,5]
[332144858,1720990238825,-420.0,0.00020056,2]
[332144859,1720990238834,-1990.00417382,0.00020328,2]
[332144860,1720990238846,-150.112233,0.000205,5]
[332144861,1720990238856,-150.112233,0.00021,3]
[332144862,1720990238865,-662.80627951,0.00021095,2]
[332144863,1720990238875,-681.075074,0.00021096,2]
[332144864,1720990238884,-167.114997,0.00021096,2]
[332144865,1720990238894,-484.04383856,0.00021366,2]
[332144866,1720990238904,-150.112233,0.000216,5]
[332144867,1720990238913,-587.0,0.00021696,2]
[332144868,1720990238926,-166.666666,0.00021918,2]
[332144869,1720990238937,-587.0,0.00022062,2]
[332144870,1720990238946,-150.112233,0.000221,5]
[332144871,1720990238956,-150.112233,0.000226,5]
[332144872,1720990238968,-1990.00417382,0.00022756,2]
[332144873,1720990238979,-15678.42893664,0.00022943,2]
[332144874,1720990238989,-484.04383856,0.00023098,2]
[332144875,1720990239000,-150.112233,0.000231,4]
[332144876,1720990239010,-166.666666,0.000232,2]
[332144877,1720990239020,-150.112233,0.000236,5]
[332144878,1720990239030,-193.0,0.00023667,2]
[332144879,1720990239039,-307.09426293,0.000239,2]
[332144880,1720990239050,-154.77557542,0.00023968,2]
[332144881,1720990239059,-240.27901755,0.00023968,2]
[332144882,1720990239068,-240.27901755,0.00023968,2]
[332144883,1720990239077,-152.0,0.00024086,2]
[332144884,1720990239087,-150.112233,0.000241,2]
[332144885,1720990239096,-823.0,0.00024268,2]
[332144886,1720990239106,-166.666666,0.00024482,2]
[332144887,1720990239115,-33680.42368905,0.00024646,5]
[332144888,1720990239124,-33274.4707941,0.00024647,3]
[332144889,1720990239133,-15242.39323698,0.00024647,3]
[332144890,1720990239146,-117855.48993902,0.00024647,3]
[332144891,1720990239155,-151.0,0.00024647,7]
[332144892,1720990239164,-151.0,0.00024647,7]
[332144893,1720990239173,-166.882314,0.00024647,7]
[332144894,1720990239183,-166.882314,0.00024647,7]
[332144895,1720990239192,-420.078357,0.00024647,7]
[332144896,1720990239202,-420.078357,0.00024647,7]
[332144897,1720990239212,-500.0,0.00024657,2]
[332144898,1720990239221,-500.0,0.00024657,2]
[332144899,1720990239230,-500.0,0.00024657,2]
[332144900,1720990239239,-500.0,0.00024657,2]
[332144901,1720990239249,-500.0,0.00024657,2]
[332144902,1720990239258,-500.0,0.00024657,2]
[332144903,1720990239267,-500.0,0.00024657,2]
[332144904,1720990239277,-500.0,0.00024657,2]
[332144905,1720990239286,-500.0,0.00024657,2]
[332144906,1720990239296,-500.0,0.00024657,2]
[332144907,1720990239305,-500.0,0.00024657,2]
[332144908,1720990239315,-500.0,0.00024657,2]
[332144909,1720990239324,-500.0,0.00024657,2]
[332144910,1720990239333,-500.0,0.00024657,2]
[332144911,1720990239342,-500.0,0.00024657,2]
[332144912,1720990239351,-500.0,0.00024657,2]
[332144913,1720990239361,-500.0,0.00024657,2]
[332144914,1720990239370,-500.0,0.00024657,2]
[332144915,1720990239379,-500.0,0.00024657,2]
[332144916,1720990239389,-500.0,0.00024657,2]
[332144917,1720990239398,-500.0,0.00024657,2]
[332144918,1720990239408,-500.0,0.00024657,2]
[332144919,1720990239417,-500.0,0.00024657,2]
[332144920,1720990239427,-500.0,0.00024657,2]
[332144921,1720990239437,-500.0,0.00024657,2]
[332144922,1720990239448,-500.0,0.00024657,2]
[332144923,1720990239458,-500.0,0.00024657,2]
[332144924,1720990239468,-500.0,0.00024657,2]
[332144925,1720990239478,-485.59534744,0.00024657,2]
[332144926,1720990239487,-500.0,0.00024657,2]
[332144927,1720990239496,-500.0,0.00024657,2]
[332144928,1720990239506,-500.0,0.00024657,2]
[332144929,1720990239515,-500.0,0.00024657,2]
[332144930,1720990239524,-500.0,0.00024657,2]
[332144931,1720990239533,-500.0,0.00024657,2]
[332144932,1720990239544,-500.0,0.00024657,2]
[332144933,1720990239553,-500.0,0.00024657,2]
[332144934,1720990239563,-500.0,0.00024657,2]
[332144935,1720990239573,-500.0,0.00024657,2]
[332144936,1720990239582,-500.0,0.00024657,2]
[332144937,1720990239591,-500.0,0.00024657,2]
[332144938,1720990239601,-500.0,0.00024657,2]
[332144939,1720990239610,-500.0,0.00024657,2]
[332144940,1720990239619,-500.0,0.00024657,2]
[332144941,1720990239629,-502.42264814,0.00024657,2]
[332144942,1720990239638,-500.0,0.00024657,2]
[332144943,1720990239647,-500.0,0.00024657,2]
[332144944,1720990239657,-500.0,0.00024657,2]
[332144945,1720990239666,-411.64932113,0.00024657,2]
[332144946,1720990239747,-500.0,0.00024657,2]
[332144947,1720990239756,-500.0,0.00024657,2]
[332144948,1720990239766,-500.0,0.00024657,2]
[332144949,1720990239776,-645.20884031,0.00024657,2]
[332144950,1720990239785,-500.0,0.00024657,2]
[332144951,1720990239794,-500.0,0.00024657,2]
[332144952,1720990239804,-500.0,0.00024657,2]
[332144953,1720990239813,-500.0,0.00024657,2]
[332144954,1720990239823,-500.0,0.00024657,2]
[332144955,1720990239833,-553.06663052,0.00024657,2]
[332144956,1720990239846,-492.48294889,0.00024657,2]
[332144957,1720990239855,-500.0,0.00024657,2]
[332144958,1720990239864,-500.0,0.00024657,2]
[332144959,1720990239874,-500.0,0.00024657,2]
[332144960,1720990239883,-574.24,0.00024657,4]
[332144961,1720990239893,-500.0,0.00024657,2]
[332144962,1720990239903,-500.0,0.00024657,2]
[332144963,1720990239913,-500.0,0.00024657,2]
[332144964,1720990239924,-500.0,0.00024657,2]
[332144965,1720990239934,-500.0,0.00024657,2]
[332144966,1720990239943,-500.0,0.00024657,2]
[332144968,1720990239952,-500.0,0.00024657,2]
[332144970,1720990239962,-500.0,0.00024657,2]
[332144972,1720990239971,-500.0,0.00024657,2]
[332144974,1720990239981,-500.0,0.00024657,2]
[332144976,1720990239990,-500.0,0.00024657,2]
[332144978,1720990239999,-500.0,0.00024657,2]
[332144980,1720990240008,-500.0,0.00024657,2]
[332144982,1720990240018,-500.0,0.00024657,2]
[332144984,1720990240027,-519.11166654,0.00024657,2]
[332144986,1720990240036,-500.0,0.00024657,2]
[332144989,1720990240055,-500.0,0.00024657,2]
[332144991,1720990240066,-500.0,0.00024657,2]
[332144993,1720990240077,-500.0,0.00024657,2]
[332144995,1720990240087,-345.05401676,0.00024657,2]
[332144997,1720990240097,-500.0,0.00024657,2]
[332144999,1720990240109,-525.25,0.00024657,2]
[332145001,1720990240119,-500.0,0.00024657,2]
[332145003,1720990240129,-509.73621863,0.00024657,2]
[332145005,1720990240141,-500.0,0.00024657,2]
[332145007,1720990240151,-500.0,0.00024657,2]
[332145009,1720990240162,-500.0,0.00024657,2]
[332145011,1720990240172,-500.0,0.00024657,2]
[332145013,1720990240182,-500.0,0.00024657,2]
[332145015,1720990240192,-500.0,0.00024657,2]
[332145017,1720990240202,-500.0,0.00024657,2]
[332145019,1720990240212,-500.0,0.00024657,2]
[332145021,1720990240222,-500.0,0.00024657,2]
[332145023,1720990240232,-500.0,0.00024657,2]
[332145025,1720990240241,-500.0,0.00024657,2]
[332145027,1720990240252,-500.0,0.00024657,2]
[332145029,1720990240262,-500.0,0.00024657,2]
[332145031,1720990240272,-500.0,0.00024657,2]
[332145033,1720990240281,-500.0,0.00024657,2]
[332145035,1720990240291,-500.0,0.00024657,2]
[332145037,1720990240301,-500.0,0.00024657,2]
[332145039,1720990240312,-500.0,0.00024657,2]
[332145041,1720990240321,-500.0,0.00024657,2]
[332145043,1720990240331,-500.0,0.00024657,2]
[332145045,1720990240340,-500.0,0.00024657,2]
[332145046,1720990240350,-406.84739268,0.00024657,2]
[332145048,1720990240359,-209.06011589,0.00024657,2]
[332145050,1720990240369,-500.0,0.00024657,2]
[332145052,1720990240378,-500.0,0.00024657,2]
[332145054,1720990240388,-500.0,0.00024657,2]
[332145056,1720990240397,-500.0,0.00024657,2]
[332145058,1720990240407,-500.0,0.00024657,2]
[332145060,1720990240417,-500.0,0.00024657,2]
[332145062,1720990240427,-500.0,0.00024657,2]
[332145064,1720990240436,-511.76520071,0.00024657,2]
[332145066,1720990240446,-500.0,0.00024657,2]
[332145068,1720990240455,-500.0,0.00024657,2]
[332145070,1720990240465,-500.0,0.00024657,2]
[332145072,1720990240475,-500.0,0.00024657,2]
[332145074,1720990240484,-500.0,0.00024657,2]
[332145076,1720990240494,-500.0,0.00024657,2]
[332145078,1720990240503,-500.0,0.00024657,2]
[332145080,1720990240513,-500.0,0.00024657,2]
[332145082,1720990240523,-500.0,0.00024657,2]
[332145084,1720990240533,-500.0,0.00024657,2]
[332145086,1720990240542,-510.93095987,0.00024657,2]
[332145088,1720990240551,-500.0,0.00024657,2]
[332145090,1720990240561,-564.74904182,0.00024657,2]
[332145092,1720990240571,-500.0,0.00024657,2]
[332145095,1720990240581,-516.4731646,0.00024657,2]
[332145097,1720990240590,-500.0,0.00024657,2]
[332145099,1720990240599,-500.0,0.00024657,2]
[332145101,1720990240610,-504.41137883,0.00024657,2]
[332145103,1720990240619,-500.0,0.00024657,2]
[332145105,1720990240629,-500.0,0.00024657,2]
[332145107,1720990240639,-500.0,0.00024657,2]
[332145109,1720990240648,-500.0,0.00024657,2]
[332145111,1720990240657,-500.0,0.00024657,2]
[332145113,1720990240667,-500.0,0.00024657,2]
[332145115,1720990240677,-500.0,0.00024657,2]
[332145117,1720990240686,-500.0,0.00024657,2]
[332145119,1720990240695,-500.0,0.00024657,2]
[332145121,1720990240705,-500.0,0.00024657,2]
[332145123,1720990240715,-500.0,0.00024657,2]
[332145125,1720990240724,-508.43858548,0.00024657,2]
[332145126,1720990240734,-500.0,0.00024657,2]
[332145127,1720990240743,-500.0,0.00024657,2]
[332145128,1720990240753,-500.0,0.00024657,2]
[332145129,1720990240764,-500.0,0.00024657,2]
[332145130,1720990240773,-377.82774438,0.00024657,2]
[332145131,1720990240783,-500.0,0.00024657,2]
[332145132,1720990240792,-500.0,0.00024657,2]
[332145133,1720990240801,-500.0,0.00024657,2]
[332145134,1720990240811,-500.0,0.00024657,2]
[332145135,1720990240820,-500.0,0.00024657,2]
[332145136,1720990240829,-500.0,0.00024657,2]
[332145137,1720990240838,-500.0,0.00024657,2]
[332145138,1720990240851,-500.0,0.00024657,2]
[332145139,1720990240861,-528.03008142,0.00024657,2]
[332145140,1720990240871,-500.0,0.00024657,2]
[332145141,1720990240880,-500.0,0.00024657,2]
[332145142,1720990240891,-500.0,0.00024657,2]
[332145143,1720990240900,-500.0,0.00024657,2]
[332145144,1720990240910,-500.0,0.00024657,2]
[332145146,1720990240921,-500.0,0.00024657,2]
[332145148,1720990240931,-500.0,0.00024657,2]
[332145149,1720990240940,-500.0,0.00024657,2]
[332145151,1720990240950,-500.0,0.00024657,2]
[332145153,1720990240960,-500.0,0.00024657,2]
[332145156,1720990240970,-500.0,0.00024657,2]
[332145157,1720990240981,-500.0,0.00024657,2]
[332145160,1720990240991,-500.0,0.00024657,2]
[332145162,1720990241001,-500.0,0.00024657,2]
[332145164,1720990241010,-503.59657739,0.00024657,2]
[332145166,1720990241020,-507.08457896,0.00024657,2]
[332145168,1720990241030,-1000.0,0.00024657,5]
[332145170,1720990241039,-500.0,0.00024657,2]
[332145172,1720990241049,-500.0,0.00024657,2]
[332145174,1720990241058,-469.03692436,0.00024657,2]
[332145176,1720990241068,-500.0,0.00024657,2]
[332145178,1720990241078,-518.36472509,0.00024657,2]
[332145180,1720990241087,-500.0,0.00024657,2]
[332145182,1720990241096,-500.0,0.00024657,2]
[332145184,1720990241106,-500.0,0.00024657,2]
[332145186,1720990241118,-500.0,0.00024657,2]
[332145188,1720990241127,-500.0,0.00024657,2]
[332145190,1720990241136,-500.0,0.00024657,2]
[332145192,1720990241146,-500.0,0.00024657,2]
[332145194,1720990241155,-500.0,0.00024657,2]
[332145196,1720990241164,-500.0,0.00024657,2]
[332145198,1720990241173,-500.0,0.00024657,2]
[332145200,1720990241182,-500.0,0.00024657,2]
[332145202,1720990241191,-500.0,0.00024657,2]
[332145204,1720990241201,-500.0,0.00024657,2]
[332145213,1720990241288,-501.5819978,0.00024657,2]
[332145215,1720990241297,-500.0,0.00024657,2]
[332145217,1720990241307,-500.0,0.00024657,2]
[332145219,1720990241316,-500.0,0.00024657,2]
[332145221,1720990241325,-500.0,0.00024657,2]
[332145223,1720990241334,-500.0,0.00024657,2]
[332145225,1720990241343,-500.0,0.00024657,2]
[332145227,1720990241352,-500.0,0.00024657,2]
[332145229,1720990241361,-500.0,0.00024657,2]
[332145231,1720990241370,-500.0,0.00024657,2]
[332145233,1720990241379,-500.0,0.00024657,2]
[332145235,1720990241388,-500.0,0.00024657,2]
[332145237,1720990241397,-500.0,0.00024657,2]
[332145239,1720990241405,-500.0,0.00024657,2]
[332145241,1720990241415,-500.0,0.00024657,2]
[332145243,1720990241425,-500.0,0.00024657,2]
[332145245,1720990241434,-500.0,0.00024657,2]
[332145247,1720990241443,-500.0,0.00024657,2]
[332145249,1720990241453,-500.0,0.00024657,2]
[332145251,1720990241462,-500.0,0.00024657,2]
[332145253,1720990241471,-500.0,0.00024657,2]
[332145255,1720990241480,-500.0,0.00024657,2]
[332145257,1720990241489,-500.0,0.00024657,2]
[332145259,1720990241498,-500.0,0.00024657,2]
[332145261,1720990241507,-500.0,0.00024657,2]
[332145263,1720990241516,-510.34269952,0.00024657,2]
[332145265,1720990241526,-500.0,0.00024657,2]
[332145267,1720990241535,-500.0,0.00024657,2]
[332145269,1720990241544,-500.0,0.00024657,2]
[332145271,1720990241554,-522.34782978,0.00024657,2]
[332145273,1720990241563,-500.0,0.00024657,2]